fUST/lending_fUST_20250824
["ID","MTS","AMOUNT","RATE_DAILY","PERIOD"]
[381105383,1756044561719,-500.0,0.00029716,2]
[381105384,1756044561743,-172.52176621,0.00029716,2]
[381105385,1756044561767,-30014.6624943,0.00029717,2]
[381105386,1756044561789,-1492.4388109,0.00029717,2]
[381105387,1756044561811,-1062.777,0.00029727,2]
[381105388,1756044561830,-1680.0,0.00029779,2]
[381105389,1756044561850,-1062.777,0.00029827,2]
[381105390,1756044561871,-330.97,0.000299,7]
[381105391,1756044561892,-1062.777,0.00029927,2]
[381105392,1756044561912,-400.0,0.0003,120]
[381105393,1756044561932,-310.84139903,0.00030137,120]
[381105394,1756044561952,-500.0,0.00030255,2]
[381105395,1756044561973,-302.36504558,0.00030346,26]
[381105396,1756044561994,-4000.0,0.00030508,4]
[381105397,1756044562014,-239.29336104,0.00030767,2]
[381105398,1756044562034,-500.0,0.00030773,5]
[381105399,1756044562054,-5000.0,0.00030782,4]
[381105400,1756044562074,-1257.14,0.00030849,3]
[381105401,1756044562094,-628.56,0.00030849,3]
[381105402,1756044562114,-314.28,0.00030849,3]
[381105403,1756044562137,-720.0,0.00030928,20]
[381105404,1756044562158,-6000.0,0.00030982,4]
[381105405,1756044562179,-428.32,0.00030999,15]
[381105406,1756044562199,-168.0,0.00031,120]
[381105407,1756044562220,-151.0,0.00031,120]
[381105408,1756044562241,-428.32,0.00031099,15]
[381105409,1756044562267,-316.97184214,0.00031123,15]
[381105410,1756044562287,-428.32,0.00031199,15]
[381105411,1756044562307,-666.0,0.00031246,2]
[381105412,1756044562326,-8000.0,0.00031247,4]
[381105413,1756044562346,-500.0,0.00031273,5]
[381105414,1756044562366,-500.0,0.00031273,5]
[381105415,1756044562387,-428.32,0.00031299,15]
[381105416,1756044562407,-167.998584,0.00031311,2]
[381105417,1756044562427,-428.32,0.00031399,15]
[381105418,1756044562447,-428.32,0.00031499,15]
[381105419,1756044562468,-428.32,0.00031599,15]
[381105420,1756044562489,-2000.0,0.00031692,4]
[381105421,1756044562511,-428.32,0.00031699,15]
[381105422,1756044562532,-428.32,0.00031799,15]
[381105423,1756044562552,-330.97,0.000318,7]
[381105424,1756044562572,-428.32,0.00031899,15]
[381105425,1756044562591,-150.5,0.00031954,120]
[381105426,1756044562610,-150.5,0.00031964,120]
[381105427,1756044562630,-160.0,0.00031969,2]
[381105428,1756044562649,-160.0,0.00031969,2]
[381105429,1756044562669,-409.16630443,0.00031969,2]
[381105430,1756044604729,1000.0,0.00027397,7]
[381105464,1756044632761,-155.2,0.00027757,15]
[381105466,1756044632771,-160.0,0.00028,7]
[381105468,1756044632782,-148.46376798,0.00028,7]
[381105470,1756044632794,-11.53623202,0.00028,7]
[381105472,1756044632803,-160.0,0.00029,10]
[381105474,1756044632813,-160.0,0.00029,10]
[381105476,1756044632822,-222.09817746,0.00029773,5]
[381105558,1756044638570,-277.90182254,0.00029773,5]
[381105560,1756044638579,-1000.0,0.00030321,5]
[381105561,1756044638589,-199.0,0.00030397,10]
[381105562,1756044638598,-157.0,0.00030497,2]
[381105563,1756044638608,-160.38784046,0.00030497,2]
[381105564,1756044638617,-250.0,0.00030497,10]
[381105565,1756044638626,-250.0,0.00030497,10]
[381105567,1756044638635,-250.0,0.00030497,10]
[381105568,1756044638645,-361.991501,0.00030497,10]
[381105569,1756044638654,-500.0,0.00030868,5]
[381105570,1756044638663,-199.0,0.000309,120]
[381105571,1756044638672,-312.77131635,0.00031874,2]
[381105572,1756044638682,-217.07852671,0.00031891,2]
[381105573,1756044638691,-376.22310801,0.00031969,2]
[381105574,1756044638700,-160.0,0.00031969,2]
[381105575,1756044638709,-844.67759735,0.00031969,2]
[381105576,1756044638718,-150.0,0.00031973,5]
[381105577,1756044638734,-150.5,0.00031974,120]
[381105578,1756044638748,-30014.6624943,0.00031974,2]
[381105579,1756044638757,-1492.4388109,0.00031974,2]
[381105580,1756044638767,-6000.0,0.00031984,4]
[381105581,1756044638776,-428.32,0.00031999,15]
[381105582,1756044638786,-186.29325745,0.00032087,2]
[381105583,1756044638795,-500.0,0.00032087,2]
[381105584,1756044638805,-500.0,0.00032087,2]
[381105585,1756044638814,-500.0,0.00032087,2]
[381105586,1756044638823,-370.52880458,0.00032087,2]
[381105587,1756044638833,-500.0,0.00032087,2]
[381105588,1756044638843,-500.0,0.00032087,2]
[381105589,1756044639070,-483.93982237,0.00032087,2]
[381105590,1756044639080,-263.45484359,0.00032087,2]
[381105591,1756044639089,-500.0,0.00032087,2]
[381105592,1756044639099,-500.0,0.00032087,2]
[381105593,1756044639108,-500.0,0.00032087,2]
[381105594,1756044639118,-500.0,0.00032087,2]
[381105595,1756044639127,-4000.0,0.00032088,4]
[381105596,1756044639136,-428.32,0.00032099,15]
[381105598,1756044639146,-232.42214577,0.00032106,2]
[381105599,1756044639155,-215.99145658,0.00032106,2]
[381105601,1756044639164,-160.0,0.00032106,2]
[381105602,1756044639173,-160.0,0.00032106,2]
[381105603,1756044639182,-160.0,0.00032106,2]
[381105604,1756044639192,-640.0,0.00032176,3]
[381105605,1756044639201,-428.32,0.00032199,15]
[381105606,1756044639210,-3000.0,0.00032296,4]
[381105607,1756044639220,-428.32,0.00032299,15]
[381105608,1756044639230,-428.32,0.00032399,15]
[381105609,1756044639239,-428.32,0.00032499,15]
[381105610,1756044639249,-250.0,0.00032521,5]
[381105611,1756044639258,-428.32,0.00032599,15]
[381105612,1756044639268,-300.0,0.00032607,20]
[381105613,1756044639277,-300.0,0.00032607,20]
[381105614,1756044639287,-300.0,0.00032607,20]
[381105615,1756044639296,-300.0,0.00032607,20]
[381105616,1756044639306,-300.0,0.00032607,20]
[381105617,1756044639315,-300.0,0.00032607,20]
[381105618,1756044639324,-300.0,0.00032607,20]
[381105619,1756044639334,-300.0,0.00032607,20]
[381105620,1756044639346,-300.0,0.00032607,20]
[381105621,1756044639356,-300.0,0.00032607,20]
[381105622,1756044639366,-300.0,0.00032607,20]
[381105623,1756044639375,-300.0,0.00032607,20]
[381105624,1756044639384,-300.0,0.00032607,20]
[381105625,1756044639393,-300.0,0.00032607,20]
[381105626,1756044639403,-300.0,0.00032607,20]
[381105627,1756044639413,-600.0,0.00032613,20]
[381105628,1756044639423,-5408.87680867,0.00032688,4]
[381105629,1756044639435,-2591.12319133,0.00032688,4]
[381105630,1756044639444,-428.32,0.00032699,15]
[381105631,1756044639453,-428.32,0.00032799,15]
[381105632,1756044639463,-316.97184217,0.00032849,19]
[381105633,1756044639472,-316.97184214,0.00032849,19]
[381105634,1756044639482,-611.02,0.00032876,120]
[381105635,1756044639491,-428.32,0.00032899,60]
[381105636,1756044639500,-151.0,0.000329,120]
[381105637,1756044639510,-428.32,0.00032999,60]
[381105638,1756044639519,-200.0,0.00033068,5]
[381105639,1756044639528,-428.32,0.00033099,60]
[381105640,1756044639537,-428.32,0.00033199,60]
[381105641,1756044639546,-428.32,0.00033299,60]
[381105642,1756044639555,-428.32,0.00033399,60]
[381105643,1756044639564,-428.32,0.00033499,60]
[381105644,1756044639573,-428.32,0.00033599,60]
[381105645,1756044639582,-428.32,0.00033699,60]
[381105646,1756044639591,-428.32,0.00033799,60]
[381105647,1756044639600,-428.32,0.00033899,60]
[381105648,1756044639609,-428.32,0.00033999,60]
[381105649,1756044639618,-202.37805278,0.00034,30]
[381105650,1756044639627,-428.32,0.00034099,60]
[381105651,1756044639636,-163.467453,0.00034136,5]
[381105652,1756044639645,-200.0,0.00034143,120]
[381105653,1756044639655,-428.32,0.00034199,60]
[381105654,1756044639664,-611.02,0.00034246,120]
[381105655,1756044639674,-428.32,0.00034299,60]
[381105656,1756044639683,-428.32,0.00034399,60]
[381105657,1756044639692,-428.32,0.00034499,60]
[381105658,1756044639701,-1003.134553,0.00034521,120]
[381105659,1756044639710,-293.7058966,0.00034534,5]
[381105660,1756044639720,-316.97184214,0.00034576,23]
[381105661,1756044639732,-428.32,0.00034599,60]
[381105662,1756044639742,-428.32,0.00034699,60]
[381105663,1756044639751,-428.32,0.00034799,60]
[381105664,1756044639761,-151.0,0.000348,120]
[381105665,1756044639771,-428.32,0.00034899,60]
[381105666,1756044639781,-428.32,0.00034999,60]
[381105667,1756044639790,-200.0,0.00035,120]
[381105668,1756044639799,-312.77131631,0.00035017,2]
[381105669,1756044639811,-428.32,0.00035099,60]
[381105670,1756044639820,-428.32,0.00035199,60]
[381105671,1756044639830,-428.32,0.00035299,60]
[381105672,1756044639840,-200.0,0.00035347,120]
[381105673,1756044639849,-428.32,0.00035399,60]
[381105674,1756044639858,-428.32,0.00035499,60]
[381105675,1756044639867,-428.32,0.00035599,60]
[381105676,1756044639877,-611.02,0.00035616,120]
[381105677,1756044639886,-179.57579227,0.00035616,2]
[381105678,1756044639895,-428.32,0.00035699,60]
[381105679,1756044639905,-428.32,0.00035799,60]
[381105680,1756044639915,-720.0,0.00035874,20]
[381105681,1756044639924,-428.32,0.00035899,60]
[381105682,1756044639934,-428.32,0.00035999,60]
[381105683,1756044639943,-428.32,0.00036099,60]
[381105684,1756044639952,-428.32,0.00036199,60]
[381105685,1756044639962,-470.76523635,0.00036288,15]
[381105686,1756044639972,-153.52396069,0.00036288,15]
[381105687,1756044639982,-7475.91907646,0.00036289,3]
[381105688,1756044639995,-6956.07649751,0.00036289,3]
[381105689,1756044640006,-15582.66692033,0.00036289,3]
[381105690,1756044640016,-1492.4388109,0.00036289,3]
[381105691,1756044640026,-428.32,0.00036299,60]
[381105692,1756044640035,-231.68,0.000363,7]
[381105693,1756044640045,-316.97184214,0.00036302,26]
[381105694,1756044640054,-500.0,0.00036351,5]
[381105695,1756044640064,-428.32,0.00036399,60]
[381105696,1756044640074,-428.32,0.00036499,60]
[381105697,1756044640083,-428.32,0.00036599,60]
[381105698,1756044640092,-428.32,0.00036699,60]
[381105699,1756044640101,-151.0,0.000367,120]
[381105700,1756044640110,-428.32,0.00036799,60]
[381105701,1756044640119,-428.32,0.00036899,60]
[381105702,1756044640128,-30014.6624943,0.0003698,3]
[381105704,1756044640138,-1492.4388109,0.0003698,3]
[381105706,1756044640147,-611.02,0.00036986,120]
[381105707,1756044640156,-428.32,0.00036999,60]
[381105708,1756044640165,-160.0,0.00037,3]
[381105709,1756044640174,-844.67759735,0.00037,3]
[381105710,1756044640183,-428.32,0.00037099,60]
[381105711,1756044640192,-428.32,0.00037199,60]
[381105712,1756044640202,-428.32,0.00037299,60]
[381105713,1756044640211,-428.32,0.00037399,60]
[381105714,1756044640220,-30014.6624943,0.00037413,3]
[381105715,1756044640230,-1492.4388109,0.00037413,3]
[381105716,1756044640239,-428.32,0.00037499,60]
[381105717,1756044640249,-163.467453,0.00037588,60]
[381105718,1756044640258,-429.24516545,0.00037599,60]
[381105719,1756044640268,-163.467453,0.0003785,60]
[381105720,1756044640277,-316.97184214,0.00038029,30]
[381105721,1756044640287,-200.0,0.00038031,120]
[381105722,1756044640297,-231.68,0.000381,7]
[381105723,1756044640307,-214.11465143,0.00038159,2]
[381105724,1756044640427,-98.65666488,0.00038159,2]
[381105725,1756044640437,-500.0,0.00038264,5]
[381105726,1756044640446,-611.02,0.00038356,120]
[381105727,1756044640456,-151.0,0.000386,120]
[381105728,1756044640465,-199.0,0.000388,30]
[381105729,1756044640475,-150.0,0.00039,120]
[381105730,1756044640484,-587.68,0.00039,14]
[381105731,1756044640493,-1003.134553,0.00039452,120]
[381105732,1756044640503,-864.0,0.00039461,30]
[381105733,1756044640512,-1147.69,0.00039726,15]
[381105734,1756044640521,-611.02,0.00039726,120]
[381105735,1756044640530,-316.97184214,0.00039755,34]
[381105736,1756044640540,-200.78973992,0.0004,120]
[381105737,1756044640549,-500.0,0.00040278,5]
[381105738,1756044640559,-151.0,0.000404,120]
[381105739,1756044640568,-200.0,0.000405,120]
[381105740,1756044640577,-436.33244,0.000405,120]
[381105741,1756044640587,-1643.1554,0.000405,120]
[381105742,1756044640596,-200.0,0.0004071,120]
[381105743,1756044640605,-300.0,0.00041,120]
[381105744,1756044640615,-165.0,0.00041,90]
[381105745,1756044640626,-160.0,0.00041,120]
[381105746,1756044640635,-8268.10238419,0.00041,120]
[381105747,1756044640644,-174.0,0.00041,90]
[381105748,1756044640653,-586.23121085,0.00041073,5]
[381105749,1756044640663,-611.02,0.00041095,120]
[381105750,1756044640672,-500.0,0.00041096,31]
[381105751,1756044640682,-500.0,0.00041096,31]
[381105752,1756044640691,-500.0,0.00041096,31]
[381105753,1756044640700,-240.09227108,0.00041096,31]
[381105754,1756044640785,-259.90772892,0.00041096,31]
[381105755,1756044640794,-500.0,0.00041096,31]
[381105756,1756044640803,-500.0,0.00041096,31]
[381105757,1756044640812,-500.0,0.00041096,31]
[381105758,1756044640821,-500.0,0.00041096,31]
[381105759,1756044640830,-500.0,0.00041096,31]
[381105760,1756044640839,-500.0,0.00041096,31]
[381105761,1756044640848,-500.0,0.00041096,31]
[381105762,1756044640857,-500.0,0.00041096,31]
[381105763,1756044640866,-500.0,0.00041096,31]
[381105764,1756044640875,-500.0,0.00041096,31]
[381105765,1756044640884,-500.0,0.00041096,31]
[381105766,1756044640893,-84.4213695,0.00041096,31]
[381105767,1756044640904,-415.5786305,0.00041096,31]
[381105768,1756044640913,-67.6781939,0.00041096,31]
[381105769,1756044640929,-432.3218061,0.00041096,31]
[381105770,1756044640938,-500.0,0.00041096,31]
[381105771,1756044640947,-93.60767384,0.00041096,31]
[381105772,1756044640958,-406.39232616,0.00041096,31]
[381105773,1756044640967,-500.0,0.00041096,31]
[381105774,1756044640976,-500.0,0.00041096,31]
[381105775,1756044640986,-500.0,0.00041096,31]
[381105776,1756044640995,-500.0,0.00041096,31]
[381105777,1756044641004,-500.0,0.00041096,31]
[381105778,1756044641013,-500.0,0.00041096,31]
[381105779,1756044641022,-500.0,0.00041096,31]
[381105780,1756044641032,-500.0,0.00041096,31]
[381105781,1756044641042,-500.0,0.00041096,31]
[381105782,1756044641052,-500.0,0.00041096,31]
[381105783,1756044641061,-500.0,0.00041096,31]
[381105784,1756044641070,-500.0,0.00041096,31]
[381105785,1756044641080,-500.0,0.00041096,31]
[381105786,1756044641089,-500.0,0.00041096,31]
[381105787,1756044641098,-500.0,0.00041096,31]
[381105788,1756044641108,-500.0,0.00041096,31]
[381105789,1756044641118,-500.0,0.00041096,31]
[381105790,1756044641127,-500.0,0.00041096,31]
[381105791,1756044641136,-500.0,0.00041096,31]
[381105792,1756044641145,-500.0,0.00041096,31]
[381105793,1756044641155,-500.0,0.00041096,31]
[381105794,1756044641164,-500.0,0.00041096,31]
[381105795,1756044641174,-500.0,0.00041096,31]
[381105796,1756044641183,-312.77131631,0.00041302,28]
[381105797,1756044641194,-174.0,0.0004137,90]
[381105798,1756044641203,-316.97184214,0.00041482,37]
[381105799,1756044641213,-231.68,0.000415,14]
[381105800,1756044641222,-252.18646331,0.00042,120]
[381105801,1756044641234,-276.98422444,0.00042,120]
[381105802,1756044641244,-417.15472785,0.00042,120]
[381105803,1756044641254,-151.0,0.000423,120]
[381105804,1756044641263,-587.68,0.000423,14]
[381105805,1756044641273,-500.0,0.00042398,30]
[381105806,1756044641282,-611.02,0.00042465,120]
[381105807,1756044641294,-11002.67155478,0.0004279,3]
[381105808,1756044641305,-14902.6699209,0.0004279,3]
[381105809,1756044641317,-4109.32101862,0.0004279,3]
[381105811,1756044641326,-1492.4388109,0.0004279,3]
[381105813,1756044641335,-200.0,0.000428,120]
[381105815,1756044641345,-1643.1554,0.000428,120]
[381105817,1756044641355,-174.0,0.00043151,90]
[381105819,1756044641364,-316.97184214,0.00043208,41]
[381105821,1756044641373,-200.0,0.00043214,120]
[381105823,1756044641383,-207.0,0.0004322,30]
[381105824,1756044641392,-1000.0,0.00043407,30]
[381105826,1756044641402,-611.02,0.00043835,120]
[381105828,1756044641411,-450.0,0.00044,120]
[381105830,1756044641420,-106.54678328,0.000442,120]
[381105832,1756044641440,-44.45321672,0.000442,120]
[381105834,1756044641450,-207.0,0.0004432,30]
[381105835,1756044641459,-1003.134553,0.00044384,120]
[381105836,1756044641468,-246.9695051,0.00044444,28]
[381105845,1756044642055,-65.80181121,0.00044444,28]
[381105846,1756044642065,-200.0,0.00044582,120]
[381105847,1756044642075,-200.0,0.00044582,120]
[381105848,1756044642085,-587.68,0.000446,14]
[381105849,1756044642095,-500.0,0.0004463,30]
[381105850,1756044642104,-316.97184214,0.00044935,45]
[381105851,1756044642114,-200.0,0.00045,7]
[381105852,1756044642123,-150.0,0.00045,120]
[381105853,1756044642132,-231.68,0.00045,14]
[381105854,1756044642142,-200.0,0.000451,120]
[381105855,1756044642151,-1643.1554,0.000451,120]
[381105856,1756044642160,-611.02,0.00045205,120]
[381105857,1756044642169,-176.0,0.00045308,90]
[381105858,1756044642179,-207.0,0.0004543,30]
[381105859,1756044642188,-929.929875,0.00045745,120]
[381105860,1756044642198,-226.254,0.00045745,120]
[381105861,1756044642207,-2720.85178735,0.0004599,2]
[381105862,1756044642221,-46929.78515746,0.0004599,2]
[381105863,1756044642235,-38457.11283838,0.0004599,2]
[381105864,1756044642245,-529.17068775,0.00046,30]
[381105865,1756044642254,-417.15472785,0.00046,30]
[381105866,1756044642264,-844.67759735,0.00046,30]
[381105867,1756044642273,-151.0,0.000461,120]
[381105868,1756044642283,-160.0,0.00046134,3]
[381105869,1756044642293,-199.0,0.00046475,120]
[381105870,1756044642303,-200.0,0.00046499,120]
[381105871,1756044642312,-200.0,0.00046499,120]
[381105872,1756044642323,-163.467453,0.00046502,20]
[381105873,1756044642332,-207.0,0.0004653,30]
[381105874,1756044642342,-1709.69,0.00046575,120]
[381105875,1756044642351,-611.02,0.00046575,120]
[381105876,1756044642361,-300.0,0.00046575,120]
[381105877,1756044642553,-587.68,0.000466,14]
[381105878,1756044642565,-1709.69,0.00046602,120]
[381105879,1756044642575,-1709.69,0.0004663,120]
[381105880,1756044642585,-1709.69,0.00046657,120]
[381105881,1756044642594,-1709.69,0.00046684,120]
[381105882,1756044642604,-1709.69,0.00046712,120]
[381105883,1756044642613,-1709.69,0.00046739,120]
[381105884,1756044642622,-1709.69,0.00046767,120]
[381105885,1756044642631,-117.70409853,0.00046794,120]
[381105886,1756044642646,-1591.98590147,0.00046794,120]
[381105887,1756044642655,-1709.69,0.00046821,120]
[381105888,1756044642664,-1709.69,0.00046849,120]
[381105889,1756044642674,-1709.69,0.00046876,120]
[381105890,1756044642683,-894.29810477,0.00046894,4]
[381105891,1756044642697,-8348.54446747,0.00046894,4]
[381105892,1756044642707,-304.2614001,0.00046894,4]
[381105893,1756044642719,-20467.55852196,0.00046894,4]
[381105894,1756044642731,-1492.4388109,0.00046894,4]
[381105895,1756044642741,-1709.69,0.00046904,120]
[381105896,1756044642750,-1709.69,0.00046931,120]
[381105897,1756044642760,-1709.69,0.00046958,120]
[381105898,1756044642770,-500.0,0.00046979,30]
[381105899,1756044642781,-1709.69,0.00046986,120]
[381105900,1756044642793,-1709.69,0.00047013,120]
[381105901,1756044642803,-1709.69,0.00047041,120]
[381105902,1756044642812,-1709.69,0.00047068,120]
[381105903,1756044642822,-1709.69,0.00047095,120]
[381105904,1756044642832,-200.0,0.00047095,120]
[381105905,1756044642841,-231.68,0.000471,14]
[381105906,1756044642851,-1709.69,0.00047123,120]
[381105907,1756044642860,-1709.69,0.0004715,120]
[381105908,1756044642869,-200.0,0.00047165,120]
[381105909,1756044642879,-1709.69,0.00047178,120]
[381105910,1756044642888,-3927.31,0.000472,14]
[381105911,1756044642897,-1709.77167332,0.00047205,120]
[381105912,1756044642906,-163.467453,0.00047226,7]
[381105913,1756044642916,-199.0,0.00047397,30]
[381105914,1756044642925,-330.35253,0.000474,120]
[381105915,1756044642935,-1643.1554,0.000474,120]
[381105916,1756044642944,-500.0,0.00047538,30]
[381105917,1756044642953,-312.77131631,0.00047587,28]
[381105918,1756044642963,-207.0,0.0004764,30]
[381105919,1756044642972,-1000.0,0.00047748,60]
[381105920,1756044642981,-244.0,0.00047748,60]
[381105921,1756044642991,-168.0,0.00047783,2]
[381105922,1756044643000,-611.02,0.00047945,120]
[381105923,1756044643009,-1000.0,0.00047999,120]
[381105924,1756044643018,-151.0,0.00048,120]
[381105925,1756044643029,-199.0,0.00048082,32]
[381105926,1756044643038,-251.504,0.00048179,82]
[381105927,1756044643048,-3927.31,0.000482,14]
[381105928,1756044643057,-200.0,0.00048702,120]
[381105929,1756044643066,-207.0,0.0004874,30]
[381105930,1756044643075,-1000.0,0.0004874,90]
[381105932,1756044643085,-199.0,0.00048767,34]
[381105934,1756044643094,-199.0,0.00048815,120]
[381105935,1756044643104,-199.0,0.00048815,120]
[381105936,1756044643113,-199.0,0.00048915,120]
[381105938,1756044643122,-199.0,0.00048915,120]
[381105940,1756044643131,-167.998584,0.00048924,2]
[381105943,1756044643141,-13403.26641514,0.0004899,4]
[381105946,1756044643154,-16611.39607916,0.0004899,4]
[381105948,1756044643163,-1492.4388109,0.0004899,4]
[381105950,1756044643173,-158.0,0.00049,60]
[381105952,1756044643182,-1000.0,0.00049,120]
[381105954,1756044643191,-7401.95984578,0.00049,120]
[381105958,1756044643215,-28372.62019479,0.00049,120]
[381105960,1756044643225,-150.0,0.00049,10]
[381105962,1756044643235,-4132.96,0.00049,14]
[381105964,1756044643245,-199.0,0.00049015,120]
[381105966,1756044643255,-199.0,0.00049015,120]
[381105968,1756044643264,-500.0,0.0004904,60]
[381105970,1756044643274,-199.0,0.00049115,120]
[381105972,1756044643283,-199.0,0.00049115,120]
[381105974,1756044643293,-256.24,0.000492,14]
[381105976,1756044643303,-199.0,0.00049215,120]
[381105978,1756044643313,-231.68,0.000493,14]
[381105980,1756044643322,-611.02,0.00049315,120]
[381105982,1756044643331,-500.0,0.00049315,120]
[381105984,1756044643340,-500.0,0.00049315,120]
[381105986,1756044643350,-500.0,0.00049315,120]
[381105988,1756044643360,-500.0,0.00049315,120]
[381105990,1756044643369,-500.0,0.00049315,120]
[381105992,1756044643379,-500.0,0.00049315,120]
[381105994,1756044643389,-500.0,0.00049315,120]
[381105996,1756044643398,-500.0,0.00049315,120]
[381105998,1756044643408,-500.0,0.00049315,120]
[381106000,1756044643422,-500.0,0.00049315,120]
[381106002,1756044643431,-500.0,0.00049315,120]
[381106004,1756044643441,-500.0,0.00049315,120]
[381106005,1756044643451,-500.0,0.00049315,120]
[381106006,1756044643460,-500.0,0.00049315,120]
[381106007,1756044643470,-500.0,0.00049315,120]
[381106008,1756044643479,-500.0,0.00049315,120]
[381106009,1756044643488,-500.0,0.00049315,120]
[381106010,1756044643498,-500.0,0.00049315,120]
[381106011,1756044643507,-181.32,0.00049315,120]
[381106012,1756044643517,-300.0,0.00049315,120]
[381106013,1756044643527,-500.0,0.00049451,30]
[381106014,1756044643536,-199.0,0.00049452,36]
[381106015,1756044643547,-422.329,0.00049523,2]
[381106017,1756044643557,-250.0,0.00049548,10]
[381106018,1756044643566,-200.0,0.00049577,120]
[381106019,1756044643575,-500.0,0.00049588,60]
[381106020,1756044643586,-1643.1554,0.000497,120]
[381106021,1756044643596,-4132.96,0.000497,14]
[381106022,1756044643605,-207.0,0.0004985,30]
[381106023,1756044643615,-436.33244,0.000499,120]
[381106024,1756044643625,-151.0,0.000499,120]
[381106025,1756044643635,-600.0,0.00049972,2]
[381106026,1756044643644,-5915.13828854,0.0004999,4]
[381106030,1756044644750,-500.0,0.00041096,31]
[381106031,1756044644760,-13676.31561061,0.0004999,4]
[381106032,1756044644772,-10423.20859515,0.0004999,4]
[381106033,1756044644782,-1492.4388109,0.0004999,4]
[381106034,1756044644792,-1000.0,0.00049999,120]
[381106035,1756044644802,-158.0,0.0005,90]
[381106036,1756044644812,-190.46026852,0.0005,120]
[381106037,1756044644921,-500.0,0.00041096,31]
[381106038,1756044644931,-809.53973148,0.0005,120]
[381106039,1756044644941,-5985.15,0.0005,120]
[381106040,1756044644950,-997.855246,0.0005,120]
[381106041,1756044644960,-153.60838687,0.0005,120]
[381106042,1756044644970,-1000.0,0.0005,120]
[381106043,1756044644979,-417.15472785,0.0005,120]
[381106044,1756044644988,-160.0,0.0005,30]
[381106045,1756044644997,-160.0,0.0005,120]
[381106046,1756044645007,-350.0,0.00050096,10]
[381106047,1756044645017,-199.0,0.00050136,38]
[381106048,1756044645026,-500.0,0.00050136,60]
[381106049,1756044645036,-929.929875,0.00050192,120]
[381106050,1756044645047,-168.0,0.00050263,2]
[381106051,1756044645057,-450.0,0.00050644,10]
[381106052,1756044645066,-500.0,0.00050684,60]
[381106053,1756044645076,-500.0,0.00050684,120]
[381106054,1756044645085,-460.0,0.00050684,120]
[381106055,1756044645095,-611.02,0.00050684,120]
[381106056,1756044645104,-480.0,0.00050684,120]
[381106057,1756044645114,-421.4844175,0.00050685,30]
[381106058,1756044645123,-161.0055628,0.00050685,30]
[381106059,1756044645132,-199.0,0.00050821,40]
[381106060,1756044645143,-4132.96,0.000509,14]
[381106061,1756044645152,-207.0,0.0005095,30]
[381106062,1756044645162,-150.5,0.0005097,120]
[381106063,1756044645171,-150.5,0.0005098,120]
[381106064,1756044645181,-150.5,0.0005099,120]
[381106065,1756044645191,-1000.0,0.00050999,120]
[381106066,1756044645200,-158.0,0.00051,120]
[381106067,1756044645211,-1000.0,0.00051,120]
[381106068,1756044645220,-1492.4388109,0.00051044,4]
[381106069,1756044645229,-500.0,0.00051054,120]
[381106070,1756044645239,-500.0,0.00051054,120]